[Event "*** Titled Tuesday 3|2 Blitz"]
[Site "Chess.com"]
[Date "2016.05.03"]
[Round "1"]
[White "HansCoolNiemann"]
[Black "Gevorg_Harutjunyan"]
[Result "0-1"]
[WhiteElo "2265"]
[BlackElo "2628"]
[TimeControl "180+2"]
[EndTime "17:08:08 PDT"]
[Termination "Gevorg_Harutjunyan won on time"]

1. d4 {[%clk 0:02:53.5]} 1... Nf6 {[%clk 0:03:00.2]} 2. c4 {[%clk 0:02:50.3]}
2... g6 {[%clk 0:03:01.3]} 3. f3 {[%clk 0:02:46.4]} 3... Bg7 {[%clk 0:03:00.8]}
4. e4 {[%clk 0:02:44.5]} 4... d6 {[%clk 0:03:01.9]} 5. Be3 {[%clk 0:02:41.6]}
5... O-O {[%clk 0:03:03.1]} 6. Ne2 {[%clk 0:02:35.3]} 6... Nc6 {[%clk
0:02:57.7]} 7. d5 {[%clk 0:02:33.6]} 7... Ne5 {[%clk 0:02:58.4]} 8. Nec3 {[%clk
0:02:33.4]} 8... e6 {[%clk 0:02:58.9]} 9. Nd2 {[%clk 0:02:31.5]} 9... c6 {[%clk
0:02:58]} 10. Be2 {[%clk 0:02:27.2]} 10... Re8 {[%clk 0:02:58.8]} 11. dxe6
{[%clk 0:02:21.2]} 11... Bxe6 {[%clk 0:02:57.7]} 12. O-O {[%clk 0:02:20.4]}
12... d5 {[%clk 0:02:52.8]} 13. Bd4 {[%clk 0:02:16.5]} 13... Nxc4 {[%clk
0:02:42.5]} 14. e5 {[%clk 0:01:49.6]} 14... Nd7 {[%clk 0:02:35.2]} 15. Nxc4
{[%clk 0:01:47.5]} 15... dxc4 {[%clk 0:02:35]} 16. f4 {[%clk 0:01:47.4]} 16...
f6 {[%clk 0:02:23.8]} 17. exf6 {[%clk 0:01:39.9]} 17... Nxf6 {[%clk 0:02:24.2]}
18. Be5 {[%clk 0:01:35.5]} 18... Qb6+ {[%clk 0:02:19.3]} 19. Bd4 {[%clk
0:01:30.1]} 19... Qa5 {[%clk 0:02:11.5]} 20. Qc2 {[%clk 0:01:22.8]} 20... Rad8
{[%clk 0:02:07.7]} 21. Rad1 {[%clk 0:01:21]} 21... b5 {[%clk 0:02:00.2]} 22. a3
{[%clk 0:00:54.5]} 22... Rxd4 {[%clk 0:01:58.5]} 23. Rxd4 {[%clk 0:00:47]} 23...
Qb6 {[%clk 0:01:59.5]} 24. Rd1 {[%clk 0:00:46.7]} 24... Nd5 {[%clk 0:01:58.1]}
25. Qd2 {[%clk 0:00:42.5]} 25... Nxc3 {[%clk 0:01:40]} 26. bxc3 {[%clk
0:00:36.8]} 26... Bd5 {[%clk 0:01:41.1]} 27. Bg4 {[%clk 0:00:26.5]} 27... Bxd4+
{[%clk 0:01:40.2]} 28. cxd4 {[%clk 0:00:25.5]} 28... a5 {[%clk 0:01:34.6]} 29.
f5 {[%clk 0:00:24.2]} 29... Qc7 {[%clk 0:01:25.4]} 30. Rf1 {[%clk 0:00:17.5]}
30... Qe7 {[%clk 0:01:19.5]} 31. fxg6 {[%clk 0:00:10.5]} 31... Qe3+ {[%clk
0:01:20.2]} 32. Qxe3 {[%clk 0:00:11]} 32... Rxe3 {[%clk 0:01:22.1]} 33. gxh7+
{[%clk 0:00:11]} 33... Kxh7 {[%clk 0:01:24]} 34. h4 {[%clk 0:00:10.7]} 34... c3
{[%clk 0:01:24.5]} 35. h5 {[%clk 0:00:10.7]} 35... b4 {[%clk 0:01:24.8]} 36. Rf6
{[%clk 0:00:09.2]} 36... Be4 {[%clk 0:01:16.1]} 37. Rf7+ {[%clk 0:00:07.1]}
37... Kh6 {[%clk 0:01:15.4]} 38. Kf2 {[%clk 0:00:05.1]} 38... Rd3 {[%clk
0:01:04.3]} 0-1

[Event "*** Titled Tuesday 3|2 Blitz"]
[Site "Chess.com"]
[Date "2016.05.03"]
[Round "1"]
[White "LyonBeast"]
[Black "IMcoach"]
[Result "1-0"]
[WhiteElo "2786"]
[BlackElo "2354"]
[TimeControl "180+2"]
[EndTime "17:08:32 PDT"]
[Termination "LyonBeast won on time"]

1. e4 {[%clk 0:03:00.7]} 1... d6 {[%clk 0:02:59]} 2. d4 {[%clk 0:03:01.3]} 2...
Nf6 {[%clk 0:02:59.2]} 3. Nc3 {[%clk 0:03:01.5]} 3... g6 {[%clk 0:02:54.6]} 4.
Be3 {[%clk 0:02:56]} 4... c6 {[%clk 0:02:54.4]} 5. Qd2 {[%clk 0:02:53.8]} 5...
Nbd7 {[%clk 0:02:53.9]} 6. O-O-O {[%clk 0:02:53.3]} 6... b5 {[%clk 0:02:48.4]}
7. f3 {[%clk 0:02:54.1]} 7... Qa5 {[%clk 0:02:47.8]} 8. Kb1 {[%clk 0:02:54.4]}
8... Rb8 {[%clk 0:02:46.4]} 9. g4 {[%clk 0:02:50.6]} 9... Nb6 {[%clk 0:02:13.8]}
10. Nd5 {[%clk 0:02:47.1]} 10... Qxd2 {[%clk 0:02:10.1]} 11. Nxf6+ {[%clk
0:02:47.4]} 11... exf6 {[%clk 0:02:11]} 12. Bxd2 {[%clk 0:02:44]} 12... h5
{[%clk 0:01:58.6]} 13. gxh5 {[%clk 0:02:33.7]} 13... Rxh5 {[%clk 0:01:57.4]} 14.
Ne2 {[%clk 0:02:35.2]} 14... Nc4 {[%clk 0:01:41.9]} 15. Bc1 {[%clk 0:02:33.9]}
15... Rh8 {[%clk 0:01:24]} 16. b3 {[%clk 0:02:24.2]} 16... Nb6 {[%clk
0:01:22.1]} 17. Bf4 {[%clk 0:02:25.3]} 17... Ra8 {[%clk 0:01:03]} 18. h4 {[%clk
0:01:47.6]} 18... Ke7 {[%clk 0:00:54.8]} 19. Bg3 {[%clk 0:01:46.7]} 19... f5
{[%clk 0:00:46.2]} 20. Nf4 {[%clk 0:01:33.5]} 20... fxe4 {[%clk 0:00:42.6]} 21.
fxe4 {[%clk 0:01:31.2]} 21... Bg7 {[%clk 0:00:42]} 22. Bg2 {[%clk 0:01:26.4]}
22... Bg4 {[%clk 0:00:37]} 23. Rd3 {[%clk 0:01:27.9]} 23... a5 {[%clk
0:00:29.8]} 24. Re1 {[%clk 0:01:27.6]} 24... a4 {[%clk 0:00:30]} 25. e5 {[%clk
0:01:26.9]} 25... d5 {[%clk 0:00:30.7]} 26. Rc3 {[%clk 0:01:27.5]} 26... Kd7
{[%clk 0:00:28.2]} 27. Nd3 {[%clk 0:01:13.6]} 27... axb3 {[%clk 0:00:27.5]} 28.
cxb3 {[%clk 0:01:14.4]} 28... Bf5 {[%clk 0:00:26.2]} 29. Kb2 {[%clk 0:01:13.3]}
29... Bxd3 {[%clk 0:00:27.1]} 30. Rxd3 {[%clk 0:01:15.2]} 30... Bh6 {[%clk
0:00:23.5]} 31. Bh3+ {[%clk 0:01:15.8]} 31... Kc7 {[%clk 0:00:24.2]} 32. e6+
{[%clk 0:01:16.4]} 32... Kb7 {[%clk 0:00:23.9]} 33. exf7 {[%clk 0:01:17.3]}
33... Bf8 {[%clk 0:00:21.6]} 34. Rde3 {[%clk 0:01:11.7]} 34... Ba3+ {[%clk
0:00:19.5]} 35. Kb1 {[%clk 0:01:12.5]} 35... Bb4 {[%clk 0:00:19.2]} 36. Rf1
{[%clk 0:01:06.4]} 36... Raf8 {[%clk 0:00:08.5]} 37. Bg4 {[%clk 0:00:59.4]}
37... Rh7 {[%clk 0:00:07.5]} 38. Ref3 {[%clk 0:01:00.3]} 38... Nc8 {[%clk
0:00:05.5]} 39. Kb2 {[%clk 0:00:57.6]} 39... Bd6 {[%clk 0:00:06.1]} 40. Bxc8+
{[%clk 0:00:57.4]} 40... Kxc8 {[%clk 0:00:07.2]} 41. Bxd6 {[%clk 0:00:57.8]}
41... Rfxf7 {[%clk 0:00:06.9]} 42. Rxf7 {[%clk 0:00:55.8]} 1-0

[Event "*** Titled Tuesday 3|2 Blitz"]
[Site "Chess.com"]
[Date "2016.05.03"]
[Round "1"]
[White "brauliocuarta"]
[Black "Mornar1951"]
[Result "0-1"]
[WhiteElo "2130"]
[BlackElo "2505"]
[TimeControl "180+2"]
[EndTime "17:08:32 PDT"]
[Termination "Mornar1951 won by checkmate"]

1. d4 {[%clk 0:02:55]} 1... Nf6 {[%clk 0:03:01]} 2. c4 {[%clk 0:02:52.8]} 2...
e6 {[%clk 0:03:02.5]} 3. Nc3 {[%clk 0:02:53]} 3... Bb4 {[%clk 0:03:03.3]} 4. e3
{[%clk 0:02:53.6]} 4... O-O {[%clk 0:03:03.9]} 5. Ne2 {[%clk 0:02:54.4]} 5... d5
{[%clk 0:03:05.1]} 6. a3 {[%clk 0:02:54]} 6... Be7 {[%clk 0:03:06.7]} 7. Nf4
{[%clk 0:02:52.4]} 7... c6 {[%clk 0:02:45.9]} 8. Be2 {[%clk 0:02:44.3]} 8...
Nbd7 {[%clk 0:02:46.3]} 9. cxd5 {[%clk 0:02:36.6]} 9... exd5 {[%clk 0:02:46.5]}
10. O-O {[%clk 0:02:36.5]} 10... Re8 {[%clk 0:02:47.7]} 11. b4 {[%clk
0:02:32.4]} 11... b5 {[%clk 0:02:31.1]} 12. Qc2 {[%clk 0:02:18.3]} 12... a5
{[%clk 0:02:29.4]} 13. Rb1 {[%clk 0:02:17.6]} 13... Nb6 {[%clk 0:02:21.3]} 14.
Bd2 {[%clk 0:02:10.3]} 14... axb4 {[%clk 0:02:09.1]} 15. axb4 {[%clk 0:02:10.5]}
15... g6 {[%clk 0:02:10.6]} 16. Na2 {[%clk 0:01:44]} 16... Bf5 {[%clk
0:02:02.4]} 17. Bd3 {[%clk 0:01:40.8]} 17... Bxd3 {[%clk 0:02:01.1]} 18. Nxd3
{[%clk 0:01:42.7]} 18... Nc4 {[%clk 0:02:02.2]} 19. Ra1 {[%clk 0:01:39.6]} 19...
Ne4 {[%clk 0:01:57.6]} 20. Bc3 {[%clk 0:01:36.1]} 20... Ra3 {[%clk 0:01:54.8]}
21. Nc5 {[%clk 0:01:28.5]} 21... Qa8 {[%clk 0:01:29.2]} 22. Nxe4 {[%clk
0:01:25.3]} 22... dxe4 {[%clk 0:01:31.1]} 23. Rfd1 {[%clk 0:01:09]} 23... Bf8
{[%clk 0:01:25.2]} 24. d5 {[%clk 0:01:06.8]} 24... cxd5 {[%clk 0:01:22.7]} 25.
Bd4 {[%clk 0:01:04.6]} 25... Qa4 {[%clk 0:01:12.1]} 26. Qxa4 {[%clk 0:01:02]}
26... Rxa4 {[%clk 0:01:06.3]} 27. Nc3 {[%clk 0:01:02]} 27... Rxa1 {[%clk
0:00:45.3]} 28. Rxa1 {[%clk 0:01:03.9]} 28... Rd8 {[%clk 0:00:44.3]} 29. Nxb5
{[%clk 0:01:00.1]} 29... Bxb4 {[%clk 0:00:42.8]} 30. Ra7 {[%clk 0:00:56.6]}
30... h5 {[%clk 0:00:31.4]} 31. g3 {[%clk 0:00:49.2]} 31... Nd2 {[%clk
0:00:30.7]} 32. Kg2 {[%clk 0:00:41.4]} 32... Nf3 {[%clk 0:00:30.7]} 33. Bf6
{[%clk 0:00:40.3]} 33... Rc8 {[%clk 0:00:31.6]} 34. Nc7 {[%clk 0:00:37]} 34...
Bc5 {[%clk 0:00:30.6]} 35. Nxd5 {[%clk 0:00:29.8]} 35... Rb8 {[%clk 0:00:28.1]}
36. Rd7 {[%clk 0:00:21.4]} 36... g5 {[%clk 0:00:25.3]} 37. h3 {[%clk 0:00:18]}
37... Rb1 {[%clk 0:00:25.1]} 38. Rd8+ {[%clk 0:00:17.1]} 38... Bf8 {[%clk
0:00:22.8]} 39. Ne7+ {[%clk 0:00:10.9]} 39... Kh7 {[%clk 0:00:24.1]} 40. g4
{[%clk 0:00:09.1]} 40... Rg1# {[%clk 0:00:23.8]} 0-1

[Event "*** Titled Tuesday 3|2 Blitz"]
[Site "Chess.com"]
[Date "2016.05.03"]
[Round "1"]
[White "ArnaudovP"]
[Black "chorejason"]
[Result "0-1"]
[WhiteElo "2408"]
[BlackElo "2041"]
[TimeControl "180+2"]
[EndTime "17:08:49 PDT"]
[Termination "chorejason won by checkmate"]

1. e4 {[%clk 0:02:52.3]} 1... c5 {[%clk 0:02:59.4]} 2. c3 {[%clk 0:02:52.3]}
2... Nf6 {[%clk 0:02:58]} 3. e5 {[%clk 0:02:53.1]} 3... Nd5 {[%clk 0:02:57.7]}
4. d4 {[%clk 0:02:54.6]} 4... d6 {[%clk 0:02:58.9]} 5. Nf3 {[%clk 0:02:49.4]}
5... Nc6 {[%clk 0:02:57.9]} 6. exd6 {[%clk 0:02:46.1]} 6... e6 {[%clk
0:02:58.5]} 7. dxc5 {[%clk 0:02:37.1]} 7... b6 {[%clk 0:02:59.9]} 8. c4 {[%clk
0:02:31.5]} 8... Nf6 {[%clk 0:02:57.3]} 9. cxb6 {[%clk 0:02:31.6]} 9... Bxd6
{[%clk 0:02:54.1]} 10. bxa7 {[%clk 0:02:32.1]} 10... O-O {[%clk 0:02:54]} 11.
Be2 {[%clk 0:02:31.6]} 11... Bb7 {[%clk 0:02:35.8]} 12. Nc3 {[%clk 0:02:30.1]}
12... Nxa7 {[%clk 0:02:18.2]} 13. O-O {[%clk 0:02:29.2]} 13... Qc7 {[%clk
0:02:17.1]} 14. h3 {[%clk 0:02:27]} 14... Rfd8 {[%clk 0:02:14.8]} 15. Qc2 {[%clk
0:02:26.3]} 15... Rac8 {[%clk 0:02:09.4]} 16. Be3 {[%clk 0:02:25.7]} 16... Ba8
{[%clk 0:02:04.1]} 17. Bxa7 {[%clk 0:02:23.3]} 17... Qxa7 {[%clk 0:02:05.2]} 18.
Nb5 {[%clk 0:02:24.6]} 18... Qb7 {[%clk 0:01:48.8]} 19. Nxd6 {[%clk 0:02:24.4]}
19... Rxd6 {[%clk 0:01:50.7]} 20. Rfd1 {[%clk 0:02:24.7]} 20... Rdc6 {[%clk
0:01:31.7]} 21. Ne5 {[%clk 0:02:24.1]} 21... Rxc4 {[%clk 0:01:29.9]} 22. Bf3
{[%clk 0:02:13.3]} 22... Qxf3 {[%clk 0:01:27.1]} 23. Nxf3 {[%clk 0:02:11.8]}
23... Rxc2 {[%clk 0:01:28.1]} 24. b4 {[%clk 0:02:05.3]} 24... Bxf3 {[%clk
0:01:27.9]} 25. gxf3 {[%clk 0:02:05.2]} 25... Nd5 {[%clk 0:01:29.2]} 26. b5
{[%clk 0:02:05.2]} 26... Rb2 {[%clk 0:01:23.5]} 27. a4 {[%clk 0:02:04.4]} 27...
Rcc2 {[%clk 0:01:22.3]} 28. Rf1 {[%clk 0:02:05.7]} 28... Ra2 {[%clk 0:01:19.3]}
29. Kg2 {[%clk 0:01:56.6]} 29... Rxf2+ {[%clk 0:01:16]} 30. Rxf2 {[%clk
0:01:53.6]} 30... Rxa1 {[%clk 0:01:17.4]} 31. Rb2 {[%clk 0:01:53.1]} 31... Rxa4
{[%clk 0:01:16.6]} 32. b6 {[%clk 0:01:54]} 32... Ra8 {[%clk 0:01:14.1]} 33. b7
{[%clk 0:01:53.9]} 33... Rb8 {[%clk 0:01:06.3]} 34. Ra2 {[%clk 0:01:53.5]} 34...
Nb6 {[%clk 0:01:06.4]} 35. Rc2 {[%clk 0:01:50.8]} 35... Rxb7 {[%clk 0:01:06.7]}
36. Kf2 {[%clk 0:01:46.9]} 36... Kf8 {[%clk 0:01:06.7]} 37. Rb2 {[%clk
0:01:47.5]} 37... Ke7 {[%clk 0:01:07.5]} 38. f4 {[%clk 0:01:49.4]} 38... h6
{[%clk 0:01:03.6]} 39. h4 {[%clk 0:01:49.9]} 39... Kd6 {[%clk 0:01:04.1]} 40. h5
{[%clk 0:01:45.4]} 40... Kc5 {[%clk 0:01:04.2]} 41. Kg3 {[%clk 0:01:47.3]} 41...
Rd7 {[%clk 0:01:03.4]} 42. Kg4 {[%clk 0:01:47.6]} 42... Nc4 {[%clk 0:01:02.4]}
43. Ra2 {[%clk 0:01:47.7]} 43... f5+ {[%clk 0:01:02.1]} 44. Kh4 {[%clk
0:01:48.3]} 44... Kd4 {[%clk 0:00:54.7]} 45. Re2 {[%clk 0:01:46.2]} 45... Re7
{[%clk 0:00:50.6]} 46. Re1 {[%clk 0:01:46.5]} 46... Ne3 {[%clk 0:00:51.8]} 47.
Ra1 {[%clk 0:01:44.9]} 47... Ke4 {[%clk 0:00:52.8]} 48. Ra4+ {[%clk 0:01:44.6]}
48... Kf3 {[%clk 0:00:54.2]} 49. Rb4 {[%clk 0:01:45.1]} 49... Rd7 {[%clk
0:00:52.9]} 50. Rb2 {[%clk 0:01:37.3]} 50... Rd1 {[%clk 0:00:53.2]} 51. Rh2
{[%clk 0:01:35.5]} 51... Rg1 {[%clk 0:00:51.8]} 52. Rh3+ {[%clk 0:01:33.4]}
52... Kxf4 {[%clk 0:00:53.2]} 53. Rh2 {[%clk 0:01:32.8]} 53... Ke4 {[%clk
0:00:51.1]} 54. Ra2 {[%clk 0:01:31.6]} 54... f4 {[%clk 0:00:47.4]} 55. Kh3
{[%clk 0:01:30.6]} 55... Kf3 {[%clk 0:00:47.3]} 56. Rh2 {[%clk 0:01:23]} 56...
Ng4 {[%clk 0:00:39.9]} 57. Rg2 {[%clk 0:01:16.2]} 57... Rh1+ {[%clk 0:00:37.1]}
58. Rh2 {[%clk 0:01:16.5]} 58... Rxh2# {[%clk 0:00:38.2]} 0-1

[Event "*** Titled Tuesday 3|2 Blitz"]
[Site "Chess.com"]
[Date "2016.05.03"]
[Round "1"]
[White "renanreis"]
[Black "LaStreetCmaMaison"]
[Result "0-1"]
[WhiteElo "2010"]
[BlackElo "2420"]
[TimeControl "180+2"]
[EndTime "17:08:52 PDT"]
[Termination "LaStreetCmaMaison won by resignation"]

1. e4 {[%clk 0:02:57.5]} 1... e6 {[%clk 0:03:00.3]} 2. Nf3 {[%clk 0:02:58.8]}
2... d5 {[%clk 0:03:01.4]} 3. exd5 {[%clk 0:02:58.1]} 3... exd5 {[%clk
0:03:02.5]} 4. d4 {[%clk 0:02:59.9]} 4... Nf6 {[%clk 0:03:03.9]} 5. Bd3 {[%clk
0:03:01.1]} 5... Bd6 {[%clk 0:03:05.5]} 6. O-O {[%clk 0:03:01.5]} 6... O-O
{[%clk 0:03:06.8]} 7. c3 {[%clk 0:03:00.9]} 7... Bg4 {[%clk 0:03:03.7]} 8. Bg5
{[%clk 0:03:01.5]} 8... Nbd7 {[%clk 0:03:02.9]} 9. Nbd2 {[%clk 0:03:01.5]} 9...
h6 {[%clk 0:03:02.9]} 10. Bh4 {[%clk 0:03:01.1]} 10... Bh5 {[%clk 0:03:00]} 11.
Qc2 {[%clk 0:03:00.8]} 11... Re8 {[%clk 0:02:56]} 12. Rae1 {[%clk 0:02:59.9]}
12... c5 {[%clk 0:02:54.2]} 13. h3 {[%clk 0:02:56.7]} 13... c4 {[%clk
0:02:52.1]} 14. Bf5 {[%clk 0:02:55.6]} 14... Rxe1 {[%clk 0:02:02.5]} 15. Rxe1
{[%clk 0:02:52.5]} 15... Nf8 {[%clk 0:02:01]} 16. Ne5 {[%clk 0:02:45.8]} 16...
g5 {[%clk 0:01:13.4]} 17. Bg3 {[%clk 0:02:25]} 17... Kg7 {[%clk 0:01:14.6]} 18.
h4 {[%clk 0:02:09.2]} 18... Ng6 {[%clk 0:01:00.6]} 19. hxg5 {[%clk 0:01:51.6]}
19... hxg5 {[%clk 0:01:01.7]} 20. Ndf3 {[%clk 0:01:23.7]} 20... Bxf3 {[%clk
0:00:53.2]} 21. Bxg6 {[%clk 0:00:38.1]} 21... Be4 {[%clk 0:00:53.5]} 22. Bxe4
{[%clk 0:00:26.8]} 22... Nxe4 {[%clk 0:00:54.6]} 23. Rxe4 {[%clk 0:00:27.2]}
23... dxe4 {[%clk 0:00:55.8]} 24. Qxe4 {[%clk 0:00:28.6]} 24... Rc8 {[%clk
0:00:47]} 25. Qf5 {[%clk 0:00:28.6]} 25... Rc7 {[%clk 0:00:46.9]} 26. f4 {[%clk
0:00:26.3]} 26... gxf4 {[%clk 0:00:33.5]} 27. Qg4+ {[%clk 0:00:26.9]} 27... Kf8
{[%clk 0:00:33.4]} 28. Bxf4 {[%clk 0:00:26.9]} 28... Qf6 {[%clk 0:00:29.1]} 29.
Bg5 {[%clk 0:00:25.4]} 29... Qe6 {[%clk 0:00:26.8]} 30. Qf4 {[%clk 0:00:17.8]}
30... Bxe5 {[%clk 0:00:27.9]} 31. dxe5 {[%clk 0:00:18.1]} 31... Rc5 {[%clk
0:00:27.7]} 32. Bf6 {[%clk 0:00:19.3]} 32... Ke8 {[%clk 0:00:25.3]} 33. Qd4
{[%clk 0:00:20]} 33... Qd5 {[%clk 0:00:23.1]} 34. Qh4 {[%clk 0:00:21.4]} 34...
Kd7 {[%clk 0:00:20.3]} 35. Qg4+ {[%clk 0:00:20.8]} 35... Kc7 {[%clk 0:00:18.7]}
36. Qg8 {[%clk 0:00:20.4]} 36... Rc6 {[%clk 0:00:18.9]} 37. Qe8 {[%clk
0:00:21.2]} 37... Qd7 {[%clk 0:00:17.8]} 38. Qg8 {[%clk 0:00:21.5]} 38... b5
{[%clk 0:00:16.4]} 39. Qg3 {[%clk 0:00:22.7]} 39... Kb7 {[%clk 0:00:16.8]} 40.
Qf3 {[%clk 0:00:22.1]} 40... a5 {[%clk 0:00:17.5]} 41. Qe4 {[%clk 0:00:22.7]}
41... Qd1+ {[%clk 0:00:17.2]} 42. Kh2 {[%clk 0:00:22.7]} 42... Qh5+ {[%clk
0:00:18.9]} 43. Kg3 {[%clk 0:00:23.3]} 43... Qg6+ {[%clk 0:00:19.9]} 44. Kh3
{[%clk 0:00:23.9]} 44... Qxe4 {[%clk 0:00:20.4]} 0-1

[Event "*** Titled Tuesday 3|2 Blitz"]
[Site "Chess.com"]
[Date "2016.05.03"]
[Round "1"]
[White "zane33"]
[Black "ZEN-22"]
[Result "0-1"]
[WhiteElo "1967"]
[BlackElo "2401"]
[TimeControl "180+2"]
[EndTime "17:08:52 PDT"]
[Termination "ZEN-22 won by resignation"]

1. e4 {[%clk 0:03:01.1]} 1... e6 {[%clk 0:02:57.1]} 2. d4 {[%clk 0:02:57.1]}
2... c5 {[%clk 0:02:58.5]} 3. Nf3 {[%clk 0:02:54.7]} 3... cxd4 {[%clk
0:02:59.6]} 4. c3 {[%clk 0:02:49.5]} 4... dxc3 {[%clk 0:02:59.9]} 5. Nxc3 {[%clk
0:02:49.2]} 5... a6 {[%clk 0:02:58.1]} 6. Bc4 {[%clk 0:02:49.8]} 6... b5 {[%clk
0:02:59.1]} 7. Bb3 {[%clk 0:02:49.9]} 7... Bb7 {[%clk 0:03:00.4]} 8. O-O {[%clk
0:02:50]} 8... Ne7 {[%clk 0:03:01.1]} 9. Bg5 {[%clk 0:02:42.5]} 9... h6 {[%clk
0:03:01.4]} 10. Be3 {[%clk 0:02:39.5]} 10... b4 {[%clk 0:03:00.6]} 11. Nd5
{[%clk 0:02:37.9]} 11... exd5 {[%clk 0:03:01.5]} 12. exd5 {[%clk 0:02:38.3]}
12... d6 {[%clk 0:03:02.8]} 13. Re1 {[%clk 0:02:27]} 13... Nd7 {[%clk
0:03:03.3]} 14. Ba4 {[%clk 0:02:02.4]} 14... Qa5 {[%clk 0:02:52.7]} 15. Bf4
{[%clk 0:01:49.7]} 15... Qxd5 {[%clk 0:02:49.2]} 16. Bxd6 {[%clk 0:01:46.3]}
16... Qxd1 {[%clk 0:02:47.3]} 17. Raxd1 {[%clk 0:01:46.6]} 17... O-O-O {[%clk
0:02:44.2]} 18. Bxe7 {[%clk 0:01:45.7]} 18... Bxe7 {[%clk 0:02:45.1]} 19. Rxe7
{[%clk 0:01:43.8]} 19... Nb6 {[%clk 0:02:35.9]} 20. Rc1+ {[%clk 0:01:32.6]}
20... Kb8 {[%clk 0:02:36.6]} 21. Bb3 {[%clk 0:01:25.5]} 21... Rd7 {[%clk
0:02:27.9]} 22. Rxf7 {[%clk 0:01:22.7]} 22... Rxf7 {[%clk 0:02:26.6]} 23. Bxf7
{[%clk 0:01:23]} 23... Rf8 {[%clk 0:02:28.1]} 24. Bh5 {[%clk 0:01:18.6]} 24...
g6 {[%clk 0:02:28.5]} 25. Bxg6 {[%clk 0:01:18.2]} 25... Bxf3 {[%clk 0:02:26.6]}
26. gxf3 {[%clk 0:01:18.3]} 26... Rg8 {[%clk 0:02:27.5]} 27. Rc6 {[%clk
0:01:19.8]} 27... Nd5 {[%clk 0:02:28.1]} 28. Kf1 {[%clk 0:01:18.2]} 28... Ne7
{[%clk 0:02:27.8]} 29. Bf7 {[%clk 0:01:15.6]} 29... Rf8 {[%clk 0:02:27.3]} 30.
Rf6 {[%clk 0:01:14]} 30... Nd5 {[%clk 0:02:25.9]} 31. Rf5 {[%clk 0:01:14.2]}
31... Ne7 {[%clk 0:02:20.7]} 32. Rf4 {[%clk 0:01:14.9]} 32... a5 {[%clk
0:02:15.4]} 33. Ke2 {[%clk 0:01:05]} 33... h5 {[%clk 0:02:05.2]} 34. Ke3 {[%clk
0:01:06.2]} 34... Kc7 {[%clk 0:01:59.6]} 35. Bb3 {[%clk 0:01:07]} 35... Nf5+
{[%clk 0:02:00.7]} 36. Kd2 {[%clk 0:01:06.8]} 36... Rd8+ {[%clk 0:02:00.8]} 37.
Kc1 {[%clk 0:01:04.7]} 37... Nd4 {[%clk 0:02:02]} 38. Rf7+ {[%clk 0:01:02.3]}
38... Kb6 {[%clk 0:02:03.3]} 39. Bd1 {[%clk 0:01:01.5]} 39... h4 {[%clk
0:02:00.4]} 40. Rh7 {[%clk 0:01:01]} 40... Rc8+ {[%clk 0:01:59.1]} 41. Kb1
{[%clk 0:00:58.5]} 41... Nf5 {[%clk 0:01:57.7]} 42. Rh5 {[%clk 0:00:58.3]} 42...
Nd6 {[%clk 0:01:49]} 43. Rxh4 {[%clk 0:00:55.9]} 43... Re8 {[%clk 0:01:47.4]}
44. Kc2 {[%clk 0:00:55.2]} 44... Re1 {[%clk 0:01:48]} 45. Rh6 {[%clk 0:00:53.8]}
45... Kc5 {[%clk 0:01:48.3]} 46. Kd2 {[%clk 0:00:50.2]} 46... Re5 {[%clk
0:01:42.9]} 47. b3 {[%clk 0:00:47]} 47... Nb5 {[%clk 0:01:39.4]} 48. f4 {[%clk
0:00:48.3]} 48... Rd5+ {[%clk 0:01:39.3]} 49. Kc1 {[%clk 0:00:43.5]} 49... Rd4
{[%clk 0:01:35.2]} 50. Rh5+ {[%clk 0:00:44.1]} 50... Kb6 {[%clk 0:01:36]} 51. f5
{[%clk 0:00:40.7]} 51... Nc3 {[%clk 0:01:36]} 52. Rh6+ {[%clk 0:00:38.4]} 52...
Kc5 {[%clk 0:01:36.5]} 53. Bf3 {[%clk 0:00:37.5]} 53... Rf4 {[%clk 0:01:36.6]}
54. Rc6+ {[%clk 0:00:36.8]} 54... Kb5 {[%clk 0:01:37.1]} 55. Rxc3 {[%clk
0:00:21.1]} 55... bxc3 {[%clk 0:01:37.7]} 56. Bd5 {[%clk 0:00:22.7]} 56... Rxf5
{[%clk 0:01:36.5]} 57. Bc4+ {[%clk 0:00:22.1]} 57... Kb4 {[%clk 0:01:37.8]} 58.
h4 {[%clk 0:00:19.3]} 58... Rxf2 {[%clk 0:01:38]} 59. h5 {[%clk 0:00:20.7]}
59... c2 {[%clk 0:01:39]} 60. Bd3 {[%clk 0:00:19.5]} 60... Kc3 {[%clk
0:01:39.6]} 61. Bxc2 {[%clk 0:00:20.6]} 61... Rxc2+ {[%clk 0:01:39.7]} 62. Kb1
{[%clk 0:00:20.5]} 62... Rh2 {[%clk 0:01:40.4]} 63. a3 {[%clk 0:00:21.2]} 63...
Kxb3 {[%clk 0:01:40.5]} 64. Kc1 {[%clk 0:00:20.7]} 64... Kxa3 {[%clk 0:01:41.4]}
0-1